bitfinex/quotes_SOLUSD_20241127
["timestamp","ask_amount","ask_price","bid_price","bid_amount"]
[1732692473217,13.32388101,232.69,232.6,13.32388101]
[1732692473417,13.32388101,232.67,232.6,13.32388101]
[1732692473728,13.32388101,232.67,232.58,13.32388101]
[1732692474108,1.7192,232.66,232.58,13.32388101]
[1732692474911,13.32388101,232.67,232.58,13.32388101]
[1732692475233,20.0,232.72,232.64,13.32388101]
[1732692475411,13.32388101,232.71,232.63,13.32388101]
[1732692475915,15.04258101,232.73,232.65,13.32388101]
[1732692476419,15.04258101,232.73,232.61,4.2989]
[1732692476420,13.32388101,232.72,232.64,13.32388101]
[1732692476727,13.32388101,232.71,232.64,13.32388101]
[1732692477817,13.32388101,232.75,232.67,13.32388101]
[1732692478929,4.2956,232.8,232.66,13.32388101]
[1732692478930,13.32388101,232.73,232.66,13.32388101]
[1732692479138,13.32388101,232.71,232.65,13.32388101]
[1732692479517,13.32388101,232.71,232.62,4.2987]
[1732692479518,13.32388101,232.71,232.63,13.32388101]
[1732692480425,13.32388101,232.73,232.65,13.32388101]
[1732692482016,13.32388101,232.77,232.69,13.32388101]
[1732692482220,15.04208101,232.79,232.71,13.32388101]
[1732692482519,13.32388101,232.79,232.71,13.32388101]
[1732692483724,15.04208101,232.79,232.71,13.32388101]
[1732692484031,13.32388101,232.79,232.71,13.32388101]
[1732692484214,13.32388101,232.8,232.73,13.32388101]
[1732692484610,13.32388101,232.8,232.71,13.32388101]
[1732692485345,15.04208101,232.8,232.71,13.32388101]
[1732692485635,13.32388101,232.78,232.71,13.32388101]
[1732692487115,15.04208101,232.8,232.71,13.32388101]
[1732692488337,10.23635627,232.8,232.71,8.51815627]
[1732692488919,8.51815627,232.8,232.71,8.51815627]
[1732692490820,1.7181,232.81,232.71,12.81525627]
[1732692491216,1.7181,232.81,232.69,4.2974]
[1732692491434,1.7181,232.81,232.69,12.81555627]
[1732692492026,24.03395627,232.82,232.71,8.51815627]
[1732692492338,6.1039,232.86,232.77,8.51815627]
[1732692492533,15.9617,232.87,232.79,8.51815627]
[1732692492846,24.47985627,232.87,232.8,8.51815627]
[1732692493641,8.51815627,232.85,232.78,12.81395627]
[1732692494043,15.9617,232.87,232.8,8.51815627]
[1732692494253,8.51815627,232.86,232.79,8.51815627]
[1732692494553,13.30036067,232.86,232.78,17.59616067]
[1732692495045,13.30036067,232.86,232.79,13.30036067]
[1732692495227,13.30036067,232.85,232.78,13.30036067]
[1732692496151,13.30036067,232.85,232.76,4.2961]
[1732692496152,13.30036067,232.88,232.8,13.30036067]
[1732692496553,13.30036067,232.89,232.81,13.30036067]
[1732692497451,13.30036067,232.89,232.81,17.59556067]
[1732692497831,1.7174,232.91,232.81,17.59556067]
[1732692497832,15.9617,232.93,232.87,13.30036067]
[1732692498058,8.1446,232.97,232.88,13.30036067]
[1732692498059,13.30036067,232.96,232.88,13.30036067]
[1732692498258,13.30036067,232.93,232.86,13.30036067]
[1732692498433,13.30036067,232.93,232.83,23.776884]
[1732692498434,13.30036067,232.95,232.87,13.30036067]
[1732692498945,1.717,232.96,232.88,13.30036067]
[1732692499158,15.01736067,232.96,232.88,13.30036067]
[1732692499859,15.3786,232.98,232.88,13.30036067]
[1732692500065,13.30036067,232.98,232.92,13.30036067]
[1732692500573,13.30036067,232.98,232.9,13.30036067]
[1732692500746,13.30036067,232.98,232.87,43.776884]
[1732692500955,13.30036067,232.96,232.89,13.30036067]
[1732692501347,13.30036067,232.94,232.87,13.30036067]
[1732692501555,13.30036067,232.96,232.88,13.30036067]
[1732692502529,13.30036067,232.98,232.9,13.30036067]
[1732692503053,13.30036067,232.98,232.9,17.59396067]
[1732692503463,1.7167,233.01,232.92,13.30036067]
[1732692503464,13.30036067,233.01,232.92,13.30036067]
[1732692504658,13.30036067,233.03,232.94,13.30036067]
[1732692505415,15.3786,233.04,232.96,13.30036067]
[1732692505541,13.30036067,233.03,232.94,13.30036067]
[1732692506563,15.01686067,233.03,232.94,13.30036067]
[1732692507360,15.01686067,233.03,232.94,17.59316067]
[1732692507664,13.30036067,233.03,232.94,17.59316067]
[1732692508139,13.30036067,233.03,232.96,13.30036067]
[1732692509153,15.01686067,233.03,232.94,13.30036067]
[1732692509355,13.30036067,233.01,232.92,13.30036067]
[1732692509557,13.30036067,232.99,232.9,17.59396067]
[1732692509769,13.30036067,232.97,232.9,17.59396067]
[1732692510569,13.30036067,232.97,232.9,13.30036067]
[1732692511271,13.30036067,232.98,232.9,13.30036067]
[1732692511474,13.30036067,232.98,232.91,13.30036067]
[1732692511765,13.30036067,232.99,232.91,13.30036067]
[1732692512142,13.30036067,232.99,232.91,17.59366067]
[1732692512362,1.7166,233.02,232.93,13.30036067]
[1732692512363,13.30036067,233.01,232.93,13.30036067]
[1732692513451,13.30036067,233.01,232.93,17.59336067]
[1732692514151,13.30036067,233.05,232.97,13.30036067]
[1732692515266,13.30036067,233.03,232.95,13.30036067]
[1732692515444,13.30036067,233.03,232.95,17.59306067]
[1732692520395,10.21653102,233.04,232.95,12.79283102]
[1732692522260,10.21653102,233.04,232.93,20.0]
[1732692522463,8.50013102,233.02,232.93,28.50013102]
[1732692523454,8.50013102,233.02,232.94,4.2929]
[1732692524372,8.50013102,233.04,232.95,8.50013102]
[1732692526180,10.21653102,233.04,232.95,12.79263102]
[1732692526477,8.50013102,233.04,232.95,12.79263102]
[1732692528087,10.21653102,233.04,232.95,12.79263102]
[1732692530178,10.21653102,233.04,232.94,4.2929]
[1732692530374,10.21653102,233.04,232.94,12.79303102]
[1732692531059,8.50013102,233.02,232.94,8.50013102]
[1732692531282,8.50013102,233.02,232.92,8.50013102]
[1732692532369,1.7166,233.01,232.92,12.79323102]
[1732692534581,1.7166,233.01,232.93,8.50013102]
[1732692535491,1.7166,233.01,232.93,12.79313102]
[1732692536182,8.50013102,233.0,232.93,4.293]
[1732692536482,20.0,233.03,232.93,4.293]
[1732692536692,8.50013102,233.0,232.93,4.293]
[1732692537277,20.0,233.05,232.93,4.293]
[1732692537485,8.50013102,233.0,232.93,4.293]
[1732692538283,20.0,233.06,232.96,8.50013102]
[1732692538488,8.50013102,233.05,232.96,8.50013102]
[1732692539364,8.50013102,233.03,232.96,8.50013102]
[1732692540086,10.21663102,233.03,232.96,8.50013102]
[1732692540267,8.50013102,233.01,232.93,4.2929]
[1732692540469,8.50013102,233.02,232.95,8.50013102]
[1732692540890,1.7165,233.03,232.95,8.50013102]
[1732692541074,8.50013102,233.04,232.97,8.50013102]
[1732692541574,10.21653102,233.04,232.97,8.50013102]
[1732692541890,10.21653102,233.04,232.92,20.0]
[1732692541891,10.21653102,233.04,232.95,12.79263102]
[1732692543161,10.21653102,233.04,232.92,20.64373031]
[1732692543381,8.50013102,233.02,232.95,8.50013102]
[1732692544460,24.2908,233.06,232.95,8.50013102]
[1732692544461,8.50013102,233.03,232.95,8.50013102]
[1732692545583,1.7165,233.02,232.95,8.50013102]
[1732692546578,1.7165,233.02,232.95,12.79283102]
[1732692546778,10.21663102,233.03,232.95,12.79283102]
[1732692548381,16.248,233.09,233.0,8.50013102]
[1732692548689,8.50013102,233.08,233.01,8.50013102]
[1732692548896,8.50013102,233.08,233.0,8.50013102]
[1732692549679,1.7162,233.07,233.0,8.50013102]
[1732692550376,8.50013102,233.08,233.0,8.50013102]
[1732692550582,8.50013102,233.08,233.0,12.79183102]
[1732692550793,10.21623102,233.08,233.0,12.79183102]
[1732692551898,10.21623102,233.08,233.0,8.50013102]
[1732692554299,10.21623102,233.08,233.0,12.79193102]
[1732692554498,10.21623102,233.08,233.0,8.50013102]
[1732692555074,10.21623102,233.08,233.0,12.79173102]
[1732692555594,10.21613102,233.1,233.02,8.50013102]
[1732692556476,10.21613102,233.1,233.02,12.79153102]
[1732692556683,8.50013102,233.1,233.02,12.79153102]
[1732692557284,10.21613102,233.1,233.02,12.79153102]
[1732692558573,25.7293,233.14,233.04,8.50013102]
[1732692558574,10.21583102,233.13,233.04,8.50013102]
[1732692558774,10.21583102,233.13,233.06,8.50013102]
[1732692560975,10.21583102,233.13,233.02,20.0]
[1732692561281,10.21583102,233.13,233.05,8.50013102]
[1732692563101,10.21583102,233.13,233.05,12.79093102]
[1732692563498,8.50013102,233.13,233.05,12.79093102]
[1732692565289,10.21583102,233.13,233.05,12.79093102]
[1732692565595,8.50013102,233.13,233.05,12.79093102]
[1732692569086,22.7675,233.2,233.05,12.79093102]
[1732692569307,8.50013102,233.15,233.06,23.776884]
[1732692569609,20.0,233.17,233.08,8.50013102]
[1732692569791,31.26763102,233.2,233.11,8.50013102]
[1732692569992,32.98283102,233.2,233.11,8.50013102]
[1732692571312,32.98283102,233.2,233.11,12.78983102]
[1732692572608,26.38513102,233.2,233.11,12.78983102]
[1732692572791,8.50013102,233.18,233.11,4.2897]
[1732692574112,10.21553102,233.18,233.09,8.50013102]
[1732692574415,10.21553102,233.18,233.1,4.29]
[1732692577100,6.5977,233.25,233.14,8.50013102]
[1732692577289,8.50013102,233.23,233.16,8.50013102]
[1732692578690,10.21513102,233.24,233.16,8.50013102]
[1732692580115,10.21513102,233.24,233.16,12.78893102]
[1732692580807,8.50013102,233.22,233.16,4.2888]
[1732692581519,8.50013102,233.22,233.15,4.289]
[1732692582986,8.50013102,233.2,233.1,4.29]
[1732692583191,8.50013102,233.2,233.11,8.50013102]
[1732692584613,8.50013102,233.2,233.12,4.2896]
[1732692584920,8.50013102,233.18,233.12,4.2896]
[1732692587307,16.1698,233.26,233.15,8.50013102]
[1732692587617,26.38473102,233.26,233.18,8.50013102]
[1732692589016,26.38473102,233.26,233.18,12.78853102]
[1732692590433,8.50013102,233.2,233.12,8.50013102]
[1732692591607,8.50013102,233.2,233.13,4.2894]
[1732692593021,20.0,233.23,233.13,4.2894]
[1732692593323,8.50013102,233.21,233.13,4.2894]
[1732692595608,16.1698,233.26,233.17,8.50013102]
[1732692595817,17.8846,233.26,233.17,8.50013102]
[1732692597107,17.8846,233.26,233.18,4.2885]
[1732692598315,8.50013102,233.25,233.18,4.2885]
[1732692598516,8.50013102,233.21,233.14,20.0]
[1732692598819,8.50013102,233.21,233.12,12.78973102]
[1732692600014,8.50013102,233.21,233.13,23.776884]
[1732692600311,10.21523102,233.21,233.13,8.50013102]
[1732692600826,8.50013102,233.19,233.13,8.50013102]
[1732692601207,1.7148,233.25,233.13,8.50013102]
[1732692601408,16.1698,233.26,233.15,8.50013102]
[1732692601710,8.50013102,233.24,233.16,4.2889]
[1732692601911,8.50013102,233.22,233.16,4.2889]
[1732692602111,8.50013102,233.22,233.13,23.776884]
[1732692602316,8.50013102,233.22,233.13,36.56641502]
[1732692602699,8.50013102,233.22,233.13,12.78953102]
[1732692603025,8.50013102,233.2,233.13,12.78953102]
[1732692604924,8.50013102,233.2,233.08,17.1434]
[1732692605235,8.50013102,233.16,233.09,4.2901]
[1732692605831,8.50013102,233.14,233.05,4.2909]
[1732692606125,8.50013102,233.14,233.05,12.79103102]
[1732692606423,1.7156,233.15,233.06,8.50013102]
[1732692606424,8.50013102,233.13,233.06,8.50013102]
[1732692607022,8.50013102,233.13,233.07,4.2905]
[1732692607321,8.50013102,233.13,233.06,8.50013102]
[1732692607627,8.50013102,233.13,233.06,12.79073102]
[1732692608021,8.50013102,233.13,233.06,8.50013102]
[1732692608204,1.7155,233.16,233.06,8.50013102]
[1732692608512,1.7155,233.16,232.99,8.50013102]
[1732692608513,20.0,233.12,232.99,8.50013102]
[1732692608718,21.8158,233.15,232.99,8.50013102]
[1732692608719,21.8158,233.15,233.07,8.50013102]
[1732692609108,15.709,233.15,233.09,8.50013102]
[1732692611102,15.709,233.15,233.09,12.79023102]
[1732692612115,15.709,233.15,233.09,8.50013102]
[1732692612313,24.20913102,233.15,233.08,4.2902]
[1732692612826,15.709,233.15,233.08,4.2902]
[1732692614330,15.709,233.15,233.08,12.79033102]
[1732692614518,8.50013102,233.18,233.1,8.50013102]
[1732692616139,24.20913102,233.2,233.11,4.2898]
[1732692616513,1.7151,233.22,233.12,8.50013102]
[1732692616733,8.50013102,233.2,233.12,8.50013102]
[1732692617228,8.50013102,233.2,233.12,12.78953102]
[1732692618331,1.715,233.23,233.14,8.50013102]
[1732692618332,8.50013102,233.22,233.14,8.50013102]
[1732692619413,1.7149,233.25,233.15,4.289]
[1732692619612,8.50013102,233.23,233.15,4.289]
[1732692620336,8.50013102,233.25,233.17,8.50013102]
[1732692620516,8.50013102,233.23,233.15,12.78913102]
[1732692621529,8.50013102,233.25,233.18,4.2885]
[1732692622916,8.50013102,233.27,233.2,4.2881]
[1732692625238,7.8213,233.3,233.21,8.50013102]
[1732692625425,6.70000927,233.36,233.27,8.50013102]
[1732692625739,1.7141,233.35,233.28,8.50013102]
[1732692625921,10.21423102,233.35,233.27,8.50013102]
[1732692626122,8.50013102,233.35,233.27,8.50013102]
[1732692626429,8.50013102,233.34,233.27,8.50013102]
[1732692626931,8.50013102,233.35,233.27,8.50013102]
[1732692627134,7.23067677,233.37,233.22,4.2877]
[1732692627338,8.50013102,233.31,233.23,8.50013102]
[1732692627650,8.50013102,233.31,233.22,12.78783102]
[1732692628947,8.50013102,233.33,233.25,8.50013102]
[1732692630545,10.21443102,233.33,233.25,8.50013102]
[1732692630723,8.50013102,233.31,233.23,12.78753102]
[1732692632347,8.50013102,233.31,233.24,8.50013102]
[1732692632843,8.50013102,233.31,233.23,8.50013102]
[1732692633044,10.21453102,233.31,233.23,8.50013102]
[1732692634440,8.50013102,233.27,233.17,4.2887]
[1732692634617,8.50013102,233.27,233.18,8.50013102]
[1732692635044,10.21483102,233.27,233.18,12.78853102]
[1732692636523,10.21483102,233.27,233.2,8.50013102]
[1732692637252,1.7147,233.27,233.2,8.50013102]
[1732692637747,1.7146,233.28,233.2,8.50013102]
[1732692640132,1.7146,233.28,233.15,16.6599]
[1732692640133,8.50013102,233.27,233.15,16.6599]
[1732692640339,8.50013102,233.25,233.17,8.50013102]
[1732692641251,1.7149,233.24,233.17,8.50013102]
[1732692642136,1.7149,233.24,233.15,8.50013102]
[1732692642137,8.50013102,233.23,233.15,8.50013102]
[1732692642335,1.7149,233.24,233.17,8.50013102]
[1732692643350,16.5,233.34,233.24,23.776884]
[1732692643653,16.5,233.34,233.29,8.50013102]
[1732692644344,0.5306675,233.37,233.29,8.50013102]
[1732692644551,0.5306675,233.37,233.3,4.2863]
[1732692644937,0.5306675,233.37,233.31,8.50013102]
[1732692646424,0.5306675,233.37,233.31,13.2405015]
[1732692647243,0.5306675,233.37,233.32,4.2859]
[1732692648150,0.5306675,233.37,233.33,13.2405015]
[1732692648850,0.5306675,233.37,233.34,13.2405015]
[1732692649041,0.5306675,233.37,233.33,13.2405015]
[1732692649435,0.5306675,233.37,233.32,13.2405015]
[1732692649631,0.5306675,233.37,233.31,13.2405015]
[1732692649845,0.5306675,233.37,233.3,13.2405015]
[1732692650725,0.5306675,233.37,233.31,4.2861]
[1732692651932,0.5306675,233.37,233.31,13.2405015]
[1732692653655,0.5306675,233.37,233.33,13.2405015]
[1732692654070,0.5306675,233.37,233.34,4.2855]
[1732692654755,0.5306675,233.37,233.35,13.2405015]
[1732692656158,0.5306675,233.37,233.36,4.2852]
[1732692656735,0.5306675,233.37,233.36,41.3025855]
[1732692657361,0.5306675,233.37,233.36,17.5257015]
[1732692657941,0.5306675,233.37,233.36,41.3025855]
[1732692658339,6.75e-05,233.37,233.36,41.94502307]
[1732692658544,28.4924015,233.51,233.4,23.776884]
[1732692658545,6.70000927,233.46,233.4,23.776884]
[1732692658753,6.70000927,233.46,233.44,13.2405015]
[1732692659552,6.70000927,233.46,233.45,37.0173855]
[1732692659748,6.70000927,233.47,233.45,37.0173855]
[1732692660062,6.70000927,233.47,233.46,41.3006855]
[1732692660477,26.80003709,233.5,233.46,41.3006855]
[1732692660478,13.40001854,233.49,233.47,23.776884]
[1732692660645,1.2940614,233.49,233.48,37.0173855]
[1732692660963,6.73051213,233.49,233.48,84.4173855]
[1732692661354,6.73051213,233.49,233.48,13.2405015]
[1732692661540,6.73051213,233.49,233.48,37.0173855]
[1732692661741,6.14e-05,233.49,233.48,37.0173855]
[1732692662338,6.14e-05,233.49,233.48,41.3003855]
[1732692663661,6.73045073,233.52,233.48,41.3003855]
[1732692663662,2.18641213,233.52,233.48,93.7003855]
[1732692663867,13.40001854,233.58,233.55,23.776884]
[1732692664165,13.40001854,233.58,233.57,13.2405015]
[1732692664666,13.40001854,233.59,233.57,13.2405015]
[1732692664857,13.40001854,233.59,233.56,13.2405015]
[1732692665061,13.40001854,233.58,233.56,13.2405015]
[1732692665464,13.40001854,233.59,233.56,13.2405015]
[1732692666451,13.40001854,233.59,233.57,13.2405015]
[1732692667447,13.90672194,233.6,233.58,4.2811]
[1732692667759,13.90672194,233.6,233.57,12.39326834]
[1732692667944,13.90672194,233.6,233.57,13.2405015]
[1732692667945,0.5067034,233.6,233.57,13.2405015]
[1732692669775,0.5067034,233.6,233.57,17.5217015]
[1732692672468,0.5067034,233.6,233.59,4.281]
[1732692672671,0.5067034,233.6,233.59,17.5215015]
[1732692673073,0.5067034,233.6,233.59,41.2983855]
[1732692678073,0.5067034,233.6,233.57,17.5218015]
[1732692678251,0.5067034,233.6,233.56,47.4]
[1732692678448,13.90672194,233.6,233.56,51.6814]
[1732692678658,0.5067034,233.6,233.56,51.6814]
[1732692679071,0.5067034,233.6,233.55,8.45644263]
[1732692679257,0.5067034,233.6,233.54,8.45644263]
[1732692679460,0.5067034,233.6,233.55,8.45644263]
[1732692679981,0.5067034,233.6,233.56,4.2815]
[1732692684871,0.5067034,233.6,233.57,13.21353691]
[1732692686993,0.5067034,233.6,233.58,4.2811]
[1732692690880,0.5067034,233.6,233.57,13.21353691]
[1732692691183,2.6471034,233.6,233.53,13.21353691]
[1732692691488,13.21353691,233.59,233.51,13.21353691]
[1732692691681,15.1954,233.58,233.51,13.21353691]
[1732692691985,15.1954,233.58,233.53,13.21353691]
[1732692693970,15.1954,233.58,233.53,17.49543691]
[1732692694179,0.5067034,233.6,233.55,13.21353691]
[1732692695382,0.5067034,233.6,233.53,4.2819]
[1732692695383,0.5067034,233.6,233.57,13.21353691]
[1732692696269,0.5067034,233.6,233.59,13.21353691]
[1732692697484,0.0067034,233.6,233.59,13.21353691]
[1732692698966,0.0067034,233.6,233.57,17.49473691]
[1732692700381,0.0067034,233.6,233.57,12.73637507]
[1732692700583,0.0067034,233.6,233.57,4.2812]
[1732692700885,0.0067034,233.6,233.57,12.73637507]
[1732692701875,0.0067034,233.6,233.52,4.2822]
[1732692702074,0.0067034,233.6,233.53,8.45517507]
[1732692702793,0.0067034,233.6,233.55,8.45517507]
[1732692703870,0.0067034,233.6,233.55,12.73667507]
[1732692705693,0.0067034,233.6,233.55,4.2815]
[1732692705899,0.0067034,233.6,233.55,12.73667507]
[1732692706575,0.0067034,233.6,233.57,8.45517507]
[1732692706884,0.0067034,233.6,233.55,14.9858]
[1732692706885,0.0067034,233.6,233.59,8.45517507]
[1732692708083,0.0067034,233.6,233.59,12.73617507]
[1732692711702,0.0067034,233.6,233.59,4.281]
[1732692712180,15.1571034,233.6,233.49,4.2828]
[1732692712378,8.45517507,233.59,233.51,8.45517507]
[1732692712981,14.85627507,233.59,233.51,8.45517507]
[1732692713179,14.85627507,233.59,233.52,4.2822]
[1732692714480,15.1571034,233.6,233.53,8.45517507]
[1732692715307,15.1571034,233.6,233.52,4.2822]
[1732692715308,0.0067034,233.6,233.57,8.45517507]
[1732692715597,0.0067034,233.6,233.59,8.45517507]
[1732692716405,0.0067034,233.6,233.59,12.73617507]
[1732692718689,0.0067034,233.6,233.59,4.281]
[1732692718905,0.0067034,233.6,233.59,12.73617507]
[1732692720376,0.0067034,233.6,233.59,36.51305907]
[1732692721491,0.0067034,233.6,233.59,12.73617507]
[1732692721910,0.0067034,233.6,233.59,4.281]
[1732692722100,0.0067034,233.6,233.59,12.73617507]
[1732692722789,0.0067034,233.6,233.59,4.281]
[1732692723195,0.0067034,233.6,233.59,32.73617507]
[1732692724513,0.0067034,233.6,233.59,24.281]
[1732692724810,0.0067034,233.6,233.59,12.73617507]
[1732692725191,0.0067034,233.6,233.59,4.281]
[1732692729823,0.0067034,233.6,233.52,4.2822]
[1732692729989,8.45517507,233.59,233.52,4.2822]
[1732692730687,8.45517507,233.57,233.5,4.2826]
[1732692730914,14.85437507,233.57,233.47,8.45517507]
[1732692731216,8.45517507,233.53,233.45,4.2835]
[1732692731512,20.0,233.54,233.4,4.2844]
[1732692731718,8.45517507,233.47,233.4,4.2844]
[1732692731896,8.45517507,233.49,233.41,8.45517507]
[1732692732216,8.45517507,233.47,233.35,4.2852]
[1732692732385,8.45517507,233.47,233.38,8.45517507]
[1732692732586,20.0,233.52,233.42,8.45517507]
[1732692732888,8.45517507,233.5,233.42,8.45517507]
[1732692733107,8.45517507,233.53,233.44,8.45517507]
[1732692733690,8.45517507,233.51,233.44,8.45517507]
[1732692734218,8.45517507,233.51,233.34,58.1139]
[1732692734219,8.45517507,233.51,233.37,20.0]
[1732692734427,13.22827614,233.5,233.41,13.22827614]
[1732692735899,13.22827614,233.5,233.43,13.22827614]
[1732692736421,15.36957614,233.5,233.41,13.22827614]
[1732692736611,13.22827614,233.48,233.4,4.2843]
[1732692736806,13.22827614,233.5,233.41,13.22827614]
[1732692737902,13.22827614,233.5,233.42,4.2841]
[1732692738898,13.22827614,233.5,233.43,13.22827614]
[1732692739105,13.22827614,233.52,233.43,13.22827614]
[1732692739304,13.22827614,233.54,233.45,13.22827614]
[1732692739501,13.22827614,233.54,233.42,4.2841]
[1732692739502,13.22827614,233.54,233.47,13.22827614]
[1732692739914,13.22827614,233.54,233.47,17.51137614]
[1732692740100,13.22827614,233.54,233.38,4.2848]
[1732692740101,13.22827614,233.5,233.38,4.2848]
[1732692740301,13.22827614,233.5,233.41,13.22827614]
[1732692740496,13.22827614,233.5,233.43,13.22827614]
[1732692742123,13.22827614,233.5,233.43,17.51207614]
[1732692743030,2.1414,233.49,233.41,13.22827614]
[1732692743215,13.22827614,233.5,233.41,13.22827614]
[1732692743216,13.22827614,233.5,233.41,17.51237614]
[1732692744527,15.5678,233.55,233.37,17.51317614]
[1732692744528,13.22827614,233.46,233.37,17.51317614]
[1732692745636,28.84047614,233.44,233.37,4.2849]
[1732692746539,28.84047614,233.44,233.37,17.51317614]
[1732692746828,15.6122,233.44,233.39,13.22827614]
[1732692747622,6.2994,233.47,233.39,13.22827614]
[1732692748021,6.2994,233.47,233.37,4.2849]
[1732692748022,6.2994,233.47,233.41,13.22827614]
[1732692748329,15.6122,233.5,233.42,4.2841]
[1732692748330,28.84047614,233.5,233.42,4.2841]
[1732692748533,28.84047614,233.5,233.43,13.22827614]
[1732692748913,15.6122,233.5,233.43,13.22827614]
[1732692750431,15.6122,233.5,233.44,4.2837]
[1732692751029,30.98177614,233.5,233.41,13.22827614]
[1732692751332,13.22827614,233.48,233.39,13.22827614]
[1732692751534,13.22827614,233.48,233.37,4.285]
[1732692751736,13.22827614,233.48,233.39,13.22827614]
[1732692752530,13.22827614,233.48,233.41,13.22827614]
[1732692752925,30.98177614,233.5,233.41,13.22827614]
[1732692754044,30.98177614,233.5,233.41,17.51237614]
[1732692754540,28.84047614,233.5,233.41,17.51237614]
[1732692754839,15.6122,233.5,233.43,13.22827614]
[1732692756119,15.6122,233.5,233.44,4.2837]
[1732692756321,15.6122,233.5,233.44,12.74787758]
[1732692757438,8.46417758,233.46,233.32,4.2859]
[1732692757642,8.46417758,233.44,233.36,8.46417758]
[1732692758136,8.46417758,233.42,233.34,8.46417758]
[1732692759036,8.46417758,233.42,233.35,4.2854]
[1732692760562,8.46417758,233.39,233.29,4.2865]
[1732692760739,8.46417758,233.33,233.2,4.2881]
[1732692760918,21.9116,233.34,233.2,4.2881]
[1732692760919,8.46417758,233.3,233.22,8.46417758]
[1732692761122,8.46417758,233.32,233.2,15.0085]
[1732692761431,8.46417758,233.3,233.21,8.46417758]
[1732692762334,13.25123432,233.29,233.21,13.25123432]
[1732692762512,13.25123432,233.29,233.22,4.2877]
[1732692765134,21.9116,233.34,233.23,13.25123432]
[1732692765135,13.25123432,233.31,233.23,13.25123432]
[1732692765443,13.25123432,233.33,233.25,13.25123432]
[1732692766343,21.9116,233.34,233.25,13.25123432]
[1732692766642,15.6122,233.34,233.3,13.25123432]
[1732692767015,13.25123432,233.39,233.3,13.25123432]
[1732692767222,21.9116,233.4,233.34,13.25123432]
[1732692767430,21.9116,233.4,233.36,13.25123432]
[1732692769033,15.6122,233.4,233.36,17.53633432]
[1732692769234,13.25123432,233.43,233.36,17.53633432]
[1732692769629,34.75553432,233.45,233.38,13.25123432]
[1732692770826,21.5043,233.45,233.38,13.25123432]
[1732692771026,21.5043,233.45,233.39,4.2846]
[1732692771228,34.75553432,233.45,233.38,17.53603432]
[1732692771423,31.27649333,233.45,233.38,17.53603432]
[1732692771641,31.27649333,233.45,233.38,4.2848]
[1732692776528,31.27649333,233.45,233.38,17.53603432]
[1732692777157,31.27649333,233.45,233.38,4.2848]
[1732692778141,13.25123432,233.43,233.34,13.25123432]
[1732692778752,15.39323432,233.43,233.34,17.53663432]
[1732692779159,13.25123432,233.43,233.34,17.53663432]
[1732692779852,13.25123432,233.43,233.36,13.25123432]
[1732692780054,15.3783,233.45,233.38,13.25123432]
[1732692780237,13.25123432,233.48,233.4,13.25123432]
[1732692780854,13.25123432,233.48,233.41,4.2843]
[1732692781259,13.25123432,233.46,233.38,13.25123432]
[1732692781438,13.25123432,233.46,233.39,4.2845]
[1732692781836,13.25123432,233.4,233.31,13.25123432]
[1732692782042,13.25123432,233.42,233.35,13.25123432]
[1732692782259,13.25123432,233.44,233.35,13.25123432]
[1732692782667,15.3783,233.5,233.41,13.25123432]
[1732692782843,13.25123432,233.49,233.41,17.53533432]
[1732692785041,13.25123432,233.45,233.37,13.25123432]
[1732692785243,13.25123432,233.45,233.34,28.062384]
[1732692785461,13.25123432,233.45,233.36,13.25123432]
[1732692786070,15.3783,233.5,233.4,13.25123432]
[1732692786254,13.25123432,233.47,233.4,13.25123432]
[1732692787066,13.25123432,233.47,233.41,4.2843]
[1732692788141,13.25123432,233.47,233.39,4.2845]
[1732692788540,13.25123432,233.47,233.4,13.25123432]
[1732692789162,13.25123432,233.45,233.38,13.25123432]
[1732692789459,13.25123432,233.45,233.36,13.25123432]
[1732692790071,13.25123432,233.43,233.36,13.25123432]
[1732692790438,13.25123432,233.43,233.35,4.2854]
[1732692791640,13.25123432,233.52,233.35,4.2854]
[1732692791641,16.0978,233.59,233.46,20.0]
[1732692791964,16.0978,233.59,233.51,13.25123432]
[1732692792167,29.34903432,233.59,233.49,13.25123432]
[1732692793064,29.34903432,233.59,233.5,4.2826]
[1732692793564,29.34903432,233.59,233.51,13.25123432]
[1732692793772,16.0978,233.59,233.51,13.25123432]
[1732692794069,16.0978,233.59,233.53,13.25123432]
[1732692795073,16.0978,233.59,233.54,4.2819]
[1732692795639,16.0978,233.59,233.55,13.25123432]
[1732692795840,13.25123432,233.63,233.55,13.25123432]
[1732692796342,18.2378,233.65,233.55,13.25123432]
[1732692796343,29.34903432,233.65,233.55,13.25123432]
[1732692796537,13.25123432,233.63,233.55,13.25123432]
[1732692797163,13.25123432,233.63,233.55,17.53283432]
[1732692797758,15.39133432,233.63,233.53,13.25123432]